[Event "*** Titled Tuesday Blitz"]
[Site "Chess.com"]
[Date "2021.02.02"]
[Round "10"]
[White "glebus008"]
[Black "The_Machine04"]
[Result "0-1"]
[WhiteElo "2260"]
[BlackElo "2480"]
[TimeControl "180+1"]
[EndTime "11:56:14 PST"]
[Termination "The_Machine04 won on time"]

1. e4 {[%clk 0:03:00.9]} 1... d6 {[%clk 0:03:00.2]} 2. d4 {[%clk 0:02:57]} 2...
Nf6 {[%clk 0:02:59.9]} 3. Nc3 {[%clk 0:02:55.9]} 3... e5 {[%clk 0:03:00.1]} 4.
Nf3 {[%clk 0:02:53.1]} 4... Nbd7 {[%clk 0:02:59.1]} 5. Bc4 {[%clk 0:02:52.7]}
5... Be7 {[%clk 0:02:59.1]} 6. O-O {[%clk 0:02:53]} 6... c6 {[%clk 0:02:58.1]}
7. a4 {[%clk 0:02:51.6]} 7... Qc7 {[%clk 0:02:58]} 8. h3 {[%clk 0:02:51.3]} 8...
h6 {[%clk 0:02:56.7]} 9. Re1 {[%clk 0:02:51.1]} 9... Nf8 {[%clk 0:02:55.2]} 10.
Be3 {[%clk 0:02:47.8]} 10... Ng6 {[%clk 0:02:54.5]} 11. Qb1 {[%clk 0:02:43.8]}
11... O-O {[%clk 0:02:52]} 12. a5 {[%clk 0:02:41.4]} 12... Rb8 {[%clk
0:02:51.8]} 13. Qa2 {[%clk 0:02:41.2]} 13... b5 {[%clk 0:02:51.8]} 14. axb6
{[%clk 0:02:39.8]} 14... axb6 {[%clk 0:02:52.7]} 15. b4 {[%clk 0:01:39.5]} 15...
b5 {[%clk 0:02:51.9]} 16. Bb3 {[%clk 0:01:39.5]} 16... Bb7 {[%clk 0:02:51.8]}
17. Qa5 {[%clk 0:01:34.7]} 17... Qxa5 {[%clk 0:02:50.7]} 18. Rxa5 {[%clk
0:01:29.9]} 18... Bd8 {[%clk 0:02:50.1]} 19. Ra2 {[%clk 0:01:22]} 19... Bc7
{[%clk 0:02:48.3]} 20. dxe5 {[%clk 0:01:16.2]} 20... dxe5 {[%clk 0:02:48.2]} 21.
Ra7 {[%clk 0:01:11]} 21... Bd6 {[%clk 0:02:36.1]} 22. Bc5 {[%clk 0:00:44.6]}
22... Bxc5 {[%clk 0:02:35.5]} 23. bxc5 {[%clk 0:00:45.5]} 23... Nd7 {[%clk
0:02:35.8]} 24. h4 {[%clk 0:00:27.2]} 24... Nxc5 {[%clk 0:02:34.7]} 25. h5
{[%clk 0:00:27.2]} 25... Nf4 {[%clk 0:02:27.2]} 26. Nxe5 {[%clk 0:00:25.8]}
26... Nxh5 {[%clk 0:02:27.3]} 27. Rd1 {[%clk 0:00:12.6]} 27... Ra8 {[%clk
0:02:22]} 28. Rxa8 {[%clk 0:00:08.6]} 28... Bxa8 {[%clk 0:02:22.4]} 29. Nd7
{[%clk 0:00:07.5]} 29... Nxd7 {[%clk 0:02:20.2]} 30. Rxd7 {[%clk 0:00:08.4]}
30... Nf6 {[%clk 0:02:17]} 31. Rc7 {[%clk 0:00:07.8]} 31... Ng4 {[%clk
0:02:12.9]} 32. f4 {[%clk 0:00:06.4]} 32... g5 {[%clk 0:02:00.1]} 33. e5 {[%clk
0:00:06.1]} 33... gxf4 {[%clk 0:01:47.2]} 34. e6 {[%clk 0:00:06.3]} 34... Ne5
{[%clk 0:01:44.6]} 35. exf7+ {[%clk 0:00:05.8]} 35... Kg7 {[%clk 0:01:39.8]} 36.
Ne4 {[%clk 0:00:06.7]} 36... Nc4 {[%clk 0:01:31.3]} 37. Nc5 {[%clk 0:00:06.5]}
37... Rxf7 {[%clk 0:01:29.6]} 38. Ne6+ {[%clk 0:00:06.3]} 38... Kf6 {[%clk
0:01:29.3]} 39. Rxf7+ {[%clk 0:00:06.2]} 39... Kxf7 {[%clk 0:01:30.2]} 40. Nxf4
{[%clk 0:00:02]} 40... Kf6 {[%clk 0:01:29.8]} 41. Bxc4 {[%clk 0:00:02.2]} 41...
bxc4 {[%clk 0:01:29.4]} 42. Kf2 {[%clk 0:00:03.1]} 42... c5 {[%clk 0:01:29.3]}
43. Ke3 {[%clk 0:00:04]} 43... Ke5 {[%clk 0:01:28.1]} 44. g3 {[%clk 0:00:04.6]}
44... Be4 {[%clk 0:01:27.4]} 45. c3 {[%clk 0:00:03.4]} 45... Kf5 {[%clk
0:01:25.4]} 46. Ne2 {[%clk 0:00:03.4]} 46... Bd3 {[%clk 0:01:24.3]} 47. Nf4
{[%clk 0:00:02.4]} 47... Kg4 {[%clk 0:01:24.5]} 48. Kf2 {[%clk 0:00:02.5]} 48...
h5 {[%clk 0:01:22.3]} 49. Ne6 {[%clk 0:00:02.4]} 49... Kf5 {[%clk 0:01:21.4]}
50. Nxc5 {[%clk 0:00:02.4]} 50... Bc2 {[%clk 0:01:17]} 51. Na4 {[%clk
0:00:03.3]} 51... Bxa4 {[%clk 0:01:15.7]} 52. Ke3 {[%clk 0:00:02.5]} 52... Bc2
{[%clk 0:01:14.6]} 0-1

[Event "*** Titled Tuesday Blitz"]
[Site "Chess.com"]
[Date "2021.02.02"]
[Round "10"]
[White "EvgenyT"]
[Black "rasmussvane"]
[Result "1-0"]
[WhiteElo "2981"]
[BlackElo "2884"]
[TimeControl "180+1"]
[EndTime "11:56:15 PST"]
[Termination "EvgenyT won by resignation"]

1. c4 {[%clk 0:03:00.9]} 1... Nf6 {[%clk 0:02:57.5]} 2. Nc3 {[%clk 0:03:00.3]}
2... c5 {[%clk 0:02:52.5]} 3. g3 {[%clk 0:02:58.8]} 3... d5 {[%clk 0:02:44.2]}
4. cxd5 {[%clk 0:02:56.7]} 4... Nxd5 {[%clk 0:02:45.1]} 5. Bg2 {[%clk
0:02:57.3]} 5... Nxc3 {[%clk 0:02:43.3]} 6. bxc3 {[%clk 0:02:48]} 6... e5 {[%clk
0:02:20.9]} 7. Nh3 {[%clk 0:02:39.3]} 7... Bd6 {[%clk 0:02:18.3]} 8. f4 {[%clk
0:02:37.8]} 8... Bxh3 {[%clk 0:02:13.2]} 9. Bxh3 {[%clk 0:02:37.2]} 9... exf4
{[%clk 0:02:13.6]} 10. Qa4+ {[%clk 0:02:21.9]} 10... Nc6 {[%clk 0:02:11.3]} 11.
Rb1 {[%clk 0:02:21.6]} 11... Qc7 {[%clk 0:01:59.8]} 12. gxf4 {[%clk 0:02:16.4]}
12... O-O {[%clk 0:01:19.5]} 13. O-O {[%clk 0:02:14.9]} 13... Rfe8 {[%clk
0:01:19.6]} 14. e3 {[%clk 0:02:09.8]} 14... Rad8 {[%clk 0:01:19.5]} 15. d4
{[%clk 0:02:07.8]} 15... Na5 {[%clk 0:00:49]} 16. Bd2 {[%clk 0:01:54]} 16... b6
{[%clk 0:00:42.4]} 17. Rbe1 {[%clk 0:01:52.1]} 17... a6 {[%clk 0:00:37.3]} 18.
Qd1 {[%clk 0:01:36.3]} 18... Nc4 {[%clk 0:00:37.2]} 19. Bc1 {[%clk 0:01:33.6]}
19... b5 {[%clk 0:00:37.6]} 20. Kh1 {[%clk 0:01:33.5]} 20... Bf8 {[%clk
0:00:31.2]} 21. Rg1 {[%clk 0:01:30.7]} 21... g6 {[%clk 0:00:30.6]} 22. Qg4
{[%clk 0:01:24.7]} 22... Bg7 {[%clk 0:00:22.7]} 23. f5 {[%clk 0:01:06.9]} 23...
cxd4 {[%clk 0:00:13.8]} 24. cxd4 {[%clk 0:00:58.8]} 24... Nd6 {[%clk 0:00:14]}
25. fxg6 {[%clk 0:00:57.1]} 25... hxg6 {[%clk 0:00:13.6]} 26. Bg2 {[%clk
0:00:57]} 26... Qe7 {[%clk 0:00:11.9]} 27. Ba3 {[%clk 0:00:45.8]} 27... Qe6
{[%clk 0:00:10.9]} 28. Qxe6 {[%clk 0:00:44.8]} 28... Rxe6 {[%clk 0:00:11.8]} 29.
Bd5 {[%clk 0:00:45.2]} 29... Ree8 {[%clk 0:00:10.1]} 30. Rxg6 {[%clk 0:00:41.4]}
30... Ne4 {[%clk 0:00:06.7]} 31. Bb3 {[%clk 0:00:25.2]} 31... Nf2+ {[%clk
0:00:03.7]} 32. Kg2 {[%clk 0:00:22.4]} 32... Nd3 {[%clk 0:00:04.6]} 33. Rf1
{[%clk 0:00:22.3]} 33... Rxe3 {[%clk 0:00:04.8]} 34. Rxf7 {[%clk 0:00:20.2]}
34... Kh8 {[%clk 0:00:02.6]} 35. Rgxg7 {[%clk 0:00:19.5]} 35... Rxd4 {[%clk
0:00:01.2]} 1-0

[Event "*** Titled Tuesday Blitz"]
[Site "Chess.com"]
[Date "2021.02.02"]
[Round "10"]
[White "Philosopherrr"]
[Black "Evgeny81"]
[Result "1-0"]
[WhiteElo "2607"]
[BlackElo "2730"]
[TimeControl "180+1"]
[EndTime "11:56:17 PST"]
[Termination "Philosopherrr won by checkmate"]

1. e4 {[%clk 0:03:00.9]} 1... c5 {[%clk 0:02:58.8]} 2. Nf3 {[%clk 0:02:58.8]}
2... Nc6 {[%clk 0:02:56.4]} 3. d3 {[%clk 0:02:53.1]} 3... g6 {[%clk 0:02:55.7]}
4. Nbd2 {[%clk 0:02:53.5]} 4... Bg7 {[%clk 0:02:55.8]} 5. g3 {[%clk 0:02:54.4]}
5... Nf6 {[%clk 0:02:55]} 6. Bg2 {[%clk 0:02:53.3]} 6... d5 {[%clk 0:02:55.3]}
7. O-O {[%clk 0:02:52.9]} 7... O-O {[%clk 0:02:53.4]} 8. c3 {[%clk 0:02:50.5]}
8... d4 {[%clk 0:02:50.9]} 9. cxd4 {[%clk 0:02:45.9]} 9... cxd4 {[%clk
0:02:51.8]} 10. a3 {[%clk 0:02:34.6]} 10... Nd7 {[%clk 0:02:47]} 11. b4 {[%clk
0:02:32.8]} 11... a6 {[%clk 0:02:46.7]} 12. Bb2 {[%clk 0:02:29.3]} 12... b5
{[%clk 0:02:45.7]} 13. Rc1 {[%clk 0:02:27.5]} 13... Bb7 {[%clk 0:02:45.2]} 14.
Nb3 {[%clk 0:02:27.8]} 14... e5 {[%clk 0:02:45.2]} 15. Nc5 {[%clk 0:02:16.1]}
15... Nxc5 {[%clk 0:02:43.4]} 16. Rxc5 {[%clk 0:02:16.6]} 16... Re8 {[%clk
0:02:38.3]} 17. Qb3 {[%clk 0:02:07.4]} 17... Bf8 {[%clk 0:02:31.2]} 18. Rc2
{[%clk 0:02:04.3]} 18... Qd7 {[%clk 0:02:22.5]} 19. Rfc1 {[%clk 0:02:02.5]}
19... Rac8 {[%clk 0:02:22.1]} 20. Ng5 {[%clk 0:01:59.8]} 20... Rc7 {[%clk
0:02:10.4]} 21. h4 {[%clk 0:01:46.4]} 21... h6 {[%clk 0:02:05.4]} 22. Bh3 {[%clk
0:01:45.4]} 22... Qd6 {[%clk 0:02:01]} 23. Nf3 {[%clk 0:01:37.8]} 23... Kg7
{[%clk 0:01:53.5]} 24. Qd5 {[%clk 0:01:26.3]} 24... Qf6 {[%clk 0:01:41.7]} 25.
Kg2 {[%clk 0:00:55.7]} 25... Nxb4 {[%clk 0:01:36.7]} 26. Rxc7 {[%clk 0:00:51.4]}
26... Bxd5 {[%clk 0:01:25.7]} 27. axb4 {[%clk 0:00:51.2]} 27... Be6 {[%clk
0:01:19.7]} 28. Bxe6 {[%clk 0:00:50.7]} 28... Qxe6 {[%clk 0:01:18]} 29. R1c6
{[%clk 0:00:47.2]} 29... Qb3 {[%clk 0:01:15.4]} 30. Nxe5 {[%clk 0:00:18.5]}
30... Qxb2 {[%clk 0:00:31.4]} 31. Rxf7+ {[%clk 0:00:17.2]} 31... Kh8 {[%clk
0:00:30.6]} 32. Nxg6+ {[%clk 0:00:16.7]} 32... Kg8 {[%clk 0:00:30.6]} 33. Rcc7
{[%clk 0:00:16.9]} 33... Rc8 {[%clk 0:00:20.1]} 34. Rcd7 {[%clk 0:00:14.1]}
34... Rd8 {[%clk 0:00:16.4]} 35. Rb7 {[%clk 0:00:13.5]} 35... Rb8 {[%clk
0:00:11.3]} 36. Ra7 {[%clk 0:00:13.3]} 36... Rb6 {[%clk 0:00:11.4]} 37. Rxf8#
{[%clk 0:00:12.4]} 1-0

[Event "*** Titled Tuesday Blitz"]
[Site "Chess.com"]
[Date "2021.02.02"]
[Round "10"]
[White "ehrenfeld"]
[Black "svilson23"]
[Result "1/2-1/2"]
[WhiteElo "2500"]
[BlackElo "2302"]
[TimeControl "180+1"]
[EndTime "11:56:22 PST"]
[Termination "Game drawn by repetition"]

1. e4 {[%clk 0:03:00.9]} 1... c5 {[%clk 0:02:58.7]} 2. Nf3 {[%clk 0:03:00.2]}
2... g6 {[%clk 0:02:55.5]} 3. Bc4 {[%clk 0:02:45.2]} 3... Bg7 {[%clk 0:02:27.6]}
4. O-O {[%clk 0:02:41.5]} 4... e6 {[%clk 0:02:27.3]} 5. c3 {[%clk 0:02:40.3]}
5... d5 {[%clk 0:02:25]} 6. exd5 {[%clk 0:02:39.7]} 6... exd5 {[%clk 0:02:24.7]}
7. Bb5+ {[%clk 0:02:32.3]} 7... Bd7 {[%clk 0:02:24.6]} 8. Bxd7+ {[%clk
0:02:31.9]} 8... Qxd7 {[%clk 0:02:18.7]} 9. d4 {[%clk 0:02:30.8]} 9... c4 {[%clk
0:02:18.1]} 10. Re1+ {[%clk 0:02:29.4]} 10... Ne7 {[%clk 0:02:17.3]} 11. Ne5
{[%clk 0:02:25.8]} 11... Bxe5 {[%clk 0:02:13.3]} 12. dxe5 {[%clk 0:02:10.6]}
12... O-O {[%clk 0:02:14.2]} 13. Nd2 {[%clk 0:02:07.3]} 13... Nbc6 {[%clk
0:02:08.6]} 14. Nf3 {[%clk 0:02:07]} 14... Nf5 {[%clk 0:02:02.1]} 15. Bg5 {[%clk
0:02:01.6]} 15... Rfe8 {[%clk 0:01:51.1]} 16. Bf6 {[%clk 0:01:56.2]} 16... d4
{[%clk 0:01:47.5]} 17. cxd4 {[%clk 0:01:55.8]} 17... Ncxd4 {[%clk 0:01:47]} 18.
Nxd4 {[%clk 0:01:43.6]} 18... Qxd4 {[%clk 0:01:43.7]} 19. Qxd4 {[%clk
0:01:29.5]} 19... Nxd4 {[%clk 0:01:44.6]} 20. Re4 {[%clk 0:01:29.5]} 20... Nc6
{[%clk 0:01:39]} 21. Rxc4 {[%clk 0:01:28.5]} 21... Nxe5 {[%clk 0:01:38.1]} 22.
Rc7 {[%clk 0:01:28.4]} 22... b6 {[%clk 0:01:22.1]} 23. h3 {[%clk 0:01:27.3]}
23... Nd3 {[%clk 0:01:10.5]} 24. Rd1 {[%clk 0:01:22.9]} 24... Nc5 {[%clk
0:01:08.1]} 25. b4 {[%clk 0:01:10]} 25... Ne4 {[%clk 0:01:07.8]} 26. Bb2 {[%clk
0:01:08.2]} 26... Rac8 {[%clk 0:00:58.8]} 27. Rdd7 {[%clk 0:01:04.1]} 27... Rxc7
{[%clk 0:00:57.2]} 28. Rxc7 {[%clk 0:01:04]} 28... a5 {[%clk 0:00:37.2]} 29. b5
{[%clk 0:01:03.7]} 29... Nd6 {[%clk 0:00:33.8]} 30. a4 {[%clk 0:01:01.1]} 30...
Kf8 {[%clk 0:00:19.9]} 31. Bd4 {[%clk 0:00:51.3]} 31... Nc8 {[%clk 0:00:16.4]}
32. Rc6 {[%clk 0:00:49.4]} 32... Rd8 {[%clk 0:00:14.5]} 33. Bxb6 {[%clk
0:00:48.7]} 33... Nxb6 {[%clk 0:00:14.5]} 34. Rxb6 {[%clk 0:00:48.5]} 34... Rd1+
{[%clk 0:00:15.2]} 35. Kh2 {[%clk 0:00:48.3]} 35... Rd4 {[%clk 0:00:15.7]} 36.
Rb8+ {[%clk 0:00:23.9]} 36... Ke7 {[%clk 0:00:13.3]} 37. Rb7+ {[%clk 0:00:24]}
37... Ke6 {[%clk 0:00:11.1]} 38. Rb6+ {[%clk 0:00:22.9]} 38... Ke7 {[%clk
0:00:10.3]} 39. Rb7+ {[%clk 0:00:22.3]} 39... Ke6 {[%clk 0:00:08.1]} 40. Rb6+
{[%clk 0:00:19.3]} 40... Ke7 {[%clk 0:00:08.1]} 41. Rb7+ {[%clk 0:00:19.5]}
1/2-1/2

[Event "*** Titled Tuesday Blitz"]
[Site "Chess.com"]
[Date "2021.02.02"]
[Round "10"]
[White "Lady_Nika"]
[Black "PawnEatingZombie"]
[Result "1-0"]
[WhiteElo "2371"]
[BlackElo "2233"]
[TimeControl "180+1"]
[EndTime "11:56:22 PST"]
[Termination "Lady_Nika won on time"]

1. d4 {[%clk 0:02:56.8]} 1... d5 {[%clk 0:02:59.3]} 2. e3 {[%clk 0:02:55.7]}
2... e6 {[%clk 0:02:59]} 3. f4 {[%clk 0:02:55.9]} 3... g6 {[%clk 0:02:46]} 4.
Nf3 {[%clk 0:02:53.3]} 4... Bg7 {[%clk 0:02:46.3]} 5. Bd3 {[%clk 0:02:50.9]}
5... Nf6 {[%clk 0:02:46.2]} 6. Nbd2 {[%clk 0:02:50.7]} 6... O-O {[%clk
0:02:44.7]} 7. c3 {[%clk 0:02:50.6]} 7... b6 {[%clk 0:02:39.9]} 8. Qe2 {[%clk
0:02:50.2]} 8... c5 {[%clk 0:02:39.4]} 9. Ne5 {[%clk 0:02:50.3]} 9... Bb7 {[%clk
0:02:38.8]} 10. O-O {[%clk 0:02:50]} 10... Nc6 {[%clk 0:02:38.1]} 11. Rf3 {[%clk
0:02:49.6]} 11... Ne7 {[%clk 0:02:37.7]} 12. Rh3 {[%clk 0:02:49.5]} 12... Ne4
{[%clk 0:02:25.3]} 13. Qe1 {[%clk 0:02:41.4]} 13... f6 {[%clk 0:01:52.4]} 14.
Nef3 {[%clk 0:02:33.6]} 14... h5 {[%clk 0:01:32.2]} 15. Nf1 {[%clk 0:02:00.8]}
15... Nf5 {[%clk 0:01:30.8]} 16. Bxe4 {[%clk 0:01:58.8]} 16... dxe4 {[%clk
0:01:30.4]} 17. Nh4 {[%clk 0:01:58.1]} 17... Nxh4 {[%clk 0:01:27.3]} 18. Qxh4
{[%clk 0:01:57.6]} 18... f5 {[%clk 0:01:19.5]} 19. Qg3 {[%clk 0:01:57.1]} 19...
Qf6 {[%clk 0:01:13.4]} 20. Bd2 {[%clk 0:01:56.4]} 20... Kf7 {[%clk 0:01:12.1]}
21. Qe1 {[%clk 0:01:53.8]} 21... Rfd8 {[%clk 0:01:09.3]} 22. Rd1 {[%clk
0:01:52.7]} 22... Rac8 {[%clk 0:01:08.2]} 23. b3 {[%clk 0:01:52.6]} 23... cxd4
{[%clk 0:01:03.5]} 24. exd4 {[%clk 0:01:51.5]} 24... b5 {[%clk 0:00:57.4]} 25.
b4 {[%clk 0:01:48.5]} 25... Bd5 {[%clk 0:00:56.5]} 26. Ne3 {[%clk 0:01:44.1]}
26... Rc7 {[%clk 0:00:46]} 27. Qe2 {[%clk 0:01:33.6]} 27... a6 {[%clk
0:00:45.2]} 28. Be1 {[%clk 0:01:33.4]} 28... Qe7 {[%clk 0:00:38]} 29. Rh4 {[%clk
0:01:09.5]} 29... Rh8 {[%clk 0:00:34.1]} 30. g4 {[%clk 0:01:07.4]} 30... hxg4
{[%clk 0:00:31.7]} 31. Rxh8 {[%clk 0:01:07]} 31... Bxh8 {[%clk 0:00:31.1]} 32.
Bg3 {[%clk 0:01:01.1]} 32... Bf6 {[%clk 0:00:30.5]} 33. Qf2 {[%clk 0:01:00.7]}
33... Rxc3 {[%clk 0:00:23.6]} 34. Kg2 {[%clk 0:01:00.3]} 34... Qc7 {[%clk
0:00:21.2]} 35. h3 {[%clk 0:00:57.8]} 35... gxh3+ {[%clk 0:00:20.6]} 36. Kxh3
{[%clk 0:00:57.8]} 36... Rc1 {[%clk 0:00:21.5]} 37. Rd2 {[%clk 0:00:51.7]} 37...
Rh1+ {[%clk 0:00:17]} 38. Kg2 {[%clk 0:00:51.8]} 38... Qc1 {[%clk 0:00:16.9]}
39. Rc2 {[%clk 0:00:49.3]} 39... Qa1 {[%clk 0:00:10.4]} 40. Rc7+ {[%clk
0:00:46.9]} 40... Ke8 {[%clk 0:00:08.9]} 41. Nc2 {[%clk 0:00:36.5]} 41... g5
{[%clk 0:00:04]} 42. Ne3 {[%clk 0:00:35.2]} 42... Bxd4 {[%clk 0:00:03.4]} 43.
Rc8+ {[%clk 0:00:33.9]} 43... Kd7 {[%clk 0:00:02.9]} 44. Rc7+ {[%clk 0:00:34.3]}
44... Kd8 {[%clk 0:00:01.7]} 45. fxg5 {[%clk 0:00:34.3]} 1-0

[Event "*** Titled Tuesday Blitz"]
[Site "Chess.com"]
[Date "2021.02.02"]
[Round "10"]
[White "barriochess"]
[Black "HElissalt"]
[Result "1-0"]
[WhiteElo "2423"]
[BlackElo "2252"]
[TimeControl "180+1"]
[EndTime "11:56:26 PST"]
[Termination "barriochess won by resignation"]

1. e4 {[%clk 0:03:00.9]} 1... d6 {[%clk 0:02:59.2]} 2. d4 {[%clk 0:03:00.3]}
2... Nf6 {[%clk 0:02:52.1]} 3. f3 {[%clk 0:03:00]} 3... e5 {[%clk 0:02:40.5]} 4.
d5 {[%clk 0:02:57.1]} 4... Be7 {[%clk 0:02:35.3]} 5. Be3 {[%clk 0:02:56]} 5...
O-O {[%clk 0:02:20]} 6. Qd2 {[%clk 0:02:54.8]} 6... a5 {[%clk 0:02:15.5]} 7. c4
{[%clk 0:02:53.2]} 7... Na6 {[%clk 0:02:15.4]} 8. Nc3 {[%clk 0:02:52.5]} 8...
Nc5 {[%clk 0:02:15.4]} 9. b3 {[%clk 0:02:48.4]} 9... Bd7 {[%clk 0:02:15.2]} 10.
Nge2 {[%clk 0:02:47.4]} 10... Ne8 {[%clk 0:01:43.9]} 11. Ng3 {[%clk 0:02:41.4]}
11... Bh4 {[%clk 0:01:27.9]} 12. Be2 {[%clk 0:02:39.6]} 12... h6 {[%clk
0:01:21.9]} 13. O-O {[%clk 0:02:38.1]} 13... Bg5 {[%clk 0:01:21.1]} 14. Rab1
{[%clk 0:02:32]} 14... Bxe3+ {[%clk 0:01:19]} 15. Qxe3 {[%clk 0:02:32]} 15...
Qg5 {[%clk 0:01:19.7]} 16. Kf2 {[%clk 0:02:23.9]} 16... Qxe3+ {[%clk 0:01:18.6]}
17. Kxe3 {[%clk 0:02:23.1]} 17... g6 {[%clk 0:01:18.5]} 18. Nh1 {[%clk
0:02:13.6]} 18... Ng7 {[%clk 0:01:18]} 19. Nf2 {[%clk 0:02:14.3]} 19... f5
{[%clk 0:01:17.7]} 20. a3 {[%clk 0:02:11.3]} 20... f4+ {[%clk 0:01:16.3]} 21.
Kd2 {[%clk 0:02:09.5]} 21... a4 {[%clk 0:01:04.2]} 22. b4 {[%clk 0:02:07.4]}
22... Nb3+ {[%clk 0:01:04.2]} 23. Ke1 {[%clk 0:01:59]} 23... Nd4 {[%clk
0:01:03.9]} 24. Bd1 {[%clk 0:01:59.3]} 24... g5 {[%clk 0:00:59.8]} 25. h3 {[%clk
0:01:58.4]} 25... h5 {[%clk 0:00:59.7]} 26. Nd3 {[%clk 0:01:58]} 26... Ne8
{[%clk 0:00:58.2]} 27. Rh1 {[%clk 0:01:55.9]} 27... Nf6 {[%clk 0:00:58.3]} 28.
c5 {[%clk 0:01:48.2]} 28... Kg7 {[%clk 0:00:57.4]} 29. Ne2 {[%clk 0:01:43.7]}
29... Nxe2 {[%clk 0:00:54.5]} 30. Bxe2 {[%clk 0:01:39.2]} 30... g4 {[%clk
0:00:55.4]} 31. hxg4 {[%clk 0:01:37.8]} 31... hxg4 {[%clk 0:00:55.6]} 32. Kd2
{[%clk 0:01:33.9]} 32... Rh8 {[%clk 0:00:53.1]} 33. Rbc1 {[%clk 0:01:27.9]}
33... Rxh1 {[%clk 0:00:50.7]} 34. Rxh1 {[%clk 0:01:26.9]} 34... Rh8 {[%clk
0:00:34.2]} 35. Rxh8 {[%clk 0:01:26.6]} 35... Kxh8 {[%clk 0:00:33.6]} 36. Bd1
{[%clk 0:01:26.8]} 36... Kg7 {[%clk 0:00:32.9]} 37. Nb2 {[%clk 0:01:25.3]} 37...
g3 {[%clk 0:00:30.3]} 38. Ke1 {[%clk 0:01:20.8]} 38... dxc5 {[%clk 0:00:24]} 39.
bxc5 {[%clk 0:01:20.4]} 39... Bb5 {[%clk 0:00:23.5]} 40. Bxa4 {[%clk 0:01:18.6]}
40... Ba6 {[%clk 0:00:20.8]} 41. Bb3 {[%clk 0:01:15.9]} 41... Kf8 {[%clk
0:00:20.2]} 42. Bc4 {[%clk 0:01:16]} 42... Ke7 {[%clk 0:00:16.9]} 43. Bxa6
{[%clk 0:01:15.8]} 43... bxa6 {[%clk 0:00:17.3]} 44. Nc4 {[%clk 0:01:16.7]}
44... Nd7 {[%clk 0:00:17.2]} 45. c6 {[%clk 0:01:17]} 45... Nc5 {[%clk
0:00:14.8]} 46. Nxe5 {[%clk 0:01:17.6]} 46... Kd6 {[%clk 0:00:14.7]} 47. Nc4+
{[%clk 0:01:12.9]} 47... Ke7 {[%clk 0:00:14.4]} 48. Ke2 {[%clk 0:01:13.8]} 48...
Nb3 {[%clk 0:00:14.2]} 49. e5 {[%clk 0:01:10.8]} 49... Nd4+ {[%clk 0:00:13.4]}
50. Kf1 {[%clk 0:01:11.1]} 50... Nf5 {[%clk 0:00:12.2]} 51. Ke1 {[%clk
0:01:05.8]} 51... Nd4 {[%clk 0:00:11.6]} 52. a4 {[%clk 0:01:03.9]} 52... a5
{[%clk 0:00:10.3]} 53. Nxa5 {[%clk 0:01:01.6]} 53... Nc2+ {[%clk 0:00:10.7]} 54.
Ke2 {[%clk 0:00:59.4]} 54... Ne3 {[%clk 0:00:10.8]} 55. d6+ {[%clk 0:00:57.5]}
55... cxd6 {[%clk 0:00:10.1]} 56. c7 {[%clk 0:00:57.4]} 56... Kd7 {[%clk
0:00:10.8]} 57. exd6 {[%clk 0:00:57]} 57... Nxg2 {[%clk 0:00:10.5]} 58. Nc4
{[%clk 0:00:56.7]} 58... Nh4 {[%clk 0:00:08.4]} 59. Nb6+ {[%clk 0:00:56.7]}
59... Kxd6 {[%clk 0:00:08.9]} 60. c8=Q {[%clk 0:00:56.7]} 1-0

[Event "*** Titled Tuesday Blitz"]
[Site "Chess.com"]
[Date "2021.02.02"]
[Round "10"]
[White "Sippp"]
[Black "TokChess"]
[Result "1-0"]
[WhiteElo "2786"]
[BlackElo "2512"]
[TimeControl "180+1"]
[EndTime "11:56:28 PST"]
[Termination "Sippp won by checkmate"]

1. e4 {[%clk 0:02:59.7]} 1... c5 {[%clk 0:02:58.7]} 2. Nf3 {[%clk 0:02:59.2]}
2... e6 {[%clk 0:02:58.4]} 3. d4 {[%clk 0:02:58.7]} 3... cxd4 {[%clk 0:02:59.3]}
4. Nxd4 {[%clk 0:02:58.4]} 4... a6 {[%clk 0:02:59.5]} 5. Be2 {[%clk 0:02:58.1]}
5... Nf6 {[%clk 0:02:58.3]} 6. Nc3 {[%clk 0:02:57.6]} 6... Qc7 {[%clk
0:02:53.5]} 7. O-O {[%clk 0:02:56.7]} 7... d6 {[%clk 0:02:53]} 8. Kh1 {[%clk
0:02:56.3]} 8... Nbd7 {[%clk 0:02:50.7]} 9. f4 {[%clk 0:02:49.3]} 9... b5 {[%clk
0:02:50.2]} 10. Bf3 {[%clk 0:02:48.5]} 10... Bb7 {[%clk 0:02:49]} 11. a3 {[%clk
0:02:48.3]} 11... Rc8 {[%clk 0:02:45.2]} 12. Re1 {[%clk 0:02:46.9]} 12... h5
{[%clk 0:02:38.4]} 13. Be3 {[%clk 0:02:45.9]} 13... Be7 {[%clk 0:02:32.2]} 14.
Bg1 {[%clk 0:02:45]} 14... Qb8 {[%clk 0:02:24.7]} 15. Qe2 {[%clk 0:02:28]} 15...
Qa8 {[%clk 0:02:08.7]} 16. Rad1 {[%clk 0:02:21.1]} 16... g6 {[%clk 0:01:50.7]}
17. Nd5 {[%clk 0:01:35.9]} 17... Bd8 {[%clk 0:01:04.9]} 18. Nxf6+ {[%clk
0:01:24.7]} 18... Nxf6 {[%clk 0:01:01.4]} 19. Nb3 {[%clk 0:01:16.4]} 19... O-O
{[%clk 0:00:44.6]} 20. Rxd6 {[%clk 0:00:37.8]} 20... Bc7 {[%clk 0:00:43.7]} 21.
Rdd1 {[%clk 0:00:37.8]} 21... Bxf4 {[%clk 0:00:42.3]} 22. Bd4 {[%clk 0:00:37.6]}
22... e5 {[%clk 0:00:41.2]} 23. Bg1 {[%clk 0:00:34.2]} 23... Rfd8 {[%clk
0:00:38.3]} 24. Nc5 {[%clk 0:00:32.7]} 24... Bc6 {[%clk 0:00:33.1]} 25. Nd3
{[%clk 0:00:31.9]} 25... Bh6 {[%clk 0:00:19.8]} 26. Nxe5 {[%clk 0:00:22]} 26...
Re8 {[%clk 0:00:20.1]} 27. Nxc6 {[%clk 0:00:21.4]} 27... Qxc6 {[%clk 0:00:21]}
28. e5 {[%clk 0:00:21.5]} 28... Qc7 {[%clk 0:00:20.6]} 29. Bd4 {[%clk
0:00:18.7]} 29... Nd7 {[%clk 0:00:19.6]} 30. Bd5 {[%clk 0:00:17.3]} 30... Nf8
{[%clk 0:00:18.8]} 31. c3 {[%clk 0:00:12.7]} 31... Bg7 {[%clk 0:00:19]} 32. Qf3
{[%clk 0:00:12.5]} 32... Rcd8 {[%clk 0:00:19]} 33. Bb3 {[%clk 0:00:11.7]} 33...
Ne6 {[%clk 0:00:19.4]} 34. Qe4 {[%clk 0:00:10.1]} 34... Re7 {[%clk 0:00:19.2]}
35. h3 {[%clk 0:00:09.1]} 35... Nc5 {[%clk 0:00:19.3]} 36. Bxc5 {[%clk
0:00:08.5]} 36... Rxd1 {[%clk 0:00:20.2]} 37. Rxd1 {[%clk 0:00:08.6]} 37... Qxc5
{[%clk 0:00:20.3]} 38. Qxg6 {[%clk 0:00:08.7]} 38... Kf8 {[%clk 0:00:13.5]} 39.
Rd8+ {[%clk 0:00:07.8]} 39... Re8 {[%clk 0:00:13.4]} 40. Qxf7# {[%clk
0:00:08.3]} 1-0